Cogmind - Beta 16 @@@ ROGUE MODE // 2025.12.13 @ 18:39:36 Player: Mozco Result: Destroyed by AD-0RF with AD-0RF's Magmablaster Performance ------------- Evolutions (1) 500 Regions Visited (6) 1200 Robots Destroyed (92) 460 Value Destroyed (1806) 1806 Prototype IDs (43) 860 Alien Tech Used (0) 0 Bonus (57) 57 TOTAL SCORE: 4883 Bonus ------- Aligned with FarCom 300 Friendly Fire -243 Cogmind --------- Core Integrity 0/400 Matter 161/300 Energy 268/280 System Corruption 8% Temperature Warm (131) Movement Rolling (140) Ox4 Location -8/Mines Parts ------- > --- POWER (1) -------- Heavy Ion Engine > --- PROPULSION (2) --- Wheel Compact Wheel > --- UTILITY (4) ------ Experimental Heat Sink Huge Storage Unit Medium Armor Plating Medium Armor Plating > --- WEAPON (2) ------- EM Pulse Cannon 8R-AWN's Boregun > --- INVENTORY (25) --- Compact Wheel Gravity Neutralizer Experimental Sensor Array Experimental Targeting Computer Advanced Launcher Guidance Computer Experimental Core Analyzer Improved Armor Integrity Analyzer Advanced Weapon Cycler Advanced Transmission Jammer Medium Armor Plating Medium Armor Plating 8R-AWN's Armor/EX Makeshift Hacking Suite Makeshift System Shield Improved System Guard System Purifier EM Pulse Cannon EM Pulse Cannon EM Pulse Cannon Rocket Launcher Datajack Katana Peak State ------------ > --- POWER ------------ Heavy Ion Engine > --- PROPULSION ------- Compact Wheel Compact Wheel > --- UTILITY ---------- Experimental Heat Sink Huge Storage Unit Medium Armor Plating Medium Armor Plating > --- WEAPON ----------- EM Pulse Cannon 8R-AWN's Boregun > --- INVENTORY -------- Gravity Neutralizer Experimental Sensor Array Experimental Targeting Computer Advanced Launcher Guidance Computer Experimental Core Analyzer Improved Armor Integrity Analyzer Advanced Weapon Cycler Advanced Transmission Jammer Medium Armor Plating Medium Armor Plating 8R-AWN's Armor/EX Hacking Suite Makeshift Hacking Suite Makeshift System Shield Improved System Guard System Purifier EM Pulse Cannon EM Pulse Cannon Rocket Launcher Datajack Katana Katana Katana [Rating: 44] Favorites ----------- Power Heavy Ion Engine Engine Heavy Ion Engine Propulsion Compact Wheel Wheel Compact Wheel Utility Medium Armor Plating Device Improved Heat Sink Storage Huge Storage Unit Processor Targeting Computer Hackware Hacking Suite Protection Medium Armor Plating Weapon Katana Energy Gun Medium Laser Energy Cannon EM Pulse Cannon Ballistic Gun Shotgun Launcher Rocket Launcher Slashing Weapon Katana Special Melee Weapon Datajack Build | -11 -10 -10 -9 -9 -9 -8 ------- Run | Yrd Mat Min Mat Min Exi Min Slots Evolved 2 | . . . 2 . . . Power . | . . . . . . . Propulsion . | . . . . . . . Utility 2 | . . . 2 . . . Weapon . | . . . . . . . Parts Attached 64 | 6 2 1 33 8 13 1 Power 6 | 1 . . 3 . 2 . Engine 6 | 1 . . 3 . 2 . Core . | . . . . . . . Reactor . | . . . . . . . Propulsion 13 | 2 . 1 5 2 3 . Treads . | . . . . . . . Leg . | . . . . . . . Wheel 13 | 2 . 1 5 2 3 . Hover . | . . . . . . . Flight . | . . . . . . . Utility 26 | 1 1 . 16 2 5 1 Device 3 | . . . 1 . 2 . Storage 4 | 1 1 . 2 . . . Processor 2 | . . . 2 . . . Hackware 1 | . . . 1 . . . Protection 16 | . . . 10 2 3 1 Artifact . | . . . . . . . Weapon 19 | 2 1 . 9 4 3 . Energy Gun 2 | 1 1 . . . . . Energy Cannon 5 | . . . 3 1 1 . Ballistic Gun 6 | 1 . . 4 . 1 . Ballistic Cannon . | . . . . . . . Launcher 2 | . . . 1 1 . . Special Weapon . | . . . . . . . Impact Weapon . | . . . . . . . Slashing Weapon 3 | . . . 1 2 . . Piercing Weapon . | . . . . . . . Special Melee Weapon 1 | . . . . . 1 . Unidentified Prototypes 3 | . . . 3 . . . Parts Lost 16 | . 1 1 6 2 6 . Power 2 | . . . 1 . 1 . Propulsion 6 | . . 1 2 1 2 . Utility 6 | . . . 2 1 3 . Weapon 2 | . 1 . 1 . . . Highest Loss Streak 5 | . 1 1 3 2 5 . To Critical Strikes 1 | . . . . . 1 . Average Backups 20 | 1 7 14 20 24 21 22 Power 2 | . 1 2 2 3 2 . Propulsion 2 | . 2 4 2 2 1 1 Utility 8 | . 1 4 8 10 10 15 Weapon 6 | . 1 3 6 8 5 5 Tool/Special . | . . . . . . . Unused Backups 31 | . . . 11 . 5 15 Power 8 | . . . 4 . 4 . Propulsion . | . . . . . . . Utility 15 | . . . 1 . 1 13 Weapon 8 | . . . 6 . . 2 Tool/Special . | . . . . . . . Average Slot Usage (%) 97 | . 99 99 98 98 92 100 Engine 11 | . 14 14 10 11 11 11 Wheel 20 | . 28 27 21 20 15 22 Device 3 | . . . 4 . 3 9 Storage 13 | . 27 28 12 11 11 11 Protection 24 | . . . 23 32 28 23 Energy Gun 1 | . 14 14 . . . . Energy Cannon 4 | . . . 4 8 4 11 Ballistic Gun 9 | . 14 14 16 . 6 5 Slashing Weapon 5 | . . . . 13 7 . Peak Build Rating 44 | 6 7 10 24 24 44 43 Average Rating 22 | 4 6 8 19 23 31 38 On Entrance 16 | . 6 7 10 24 24 42 Avg Prop Armor Cover (%) . | . . . . . . . Naked Turns . | . . . . . . . Heaviest Build 119 | 11 51 51 114 117 119 114 Greatest Support 44 | 20 20 26 26 26 44 38 Greatest Overweight (x) 10 | . 2 2 5 10 7 4 Average Overweight (x) 3 | . 1 1 2 4 5 2 Largest Inventory Capacity 25 | 8 20 20 25 25 25 25 Average Capacity 23 | 7 19 20 22 25 25 25 Most Carried 25 | 4 8 17 25 25 25 24 Average Carried 20 | 1 7 14 20 24 22 24 Final Capacity 25 | 8 20 20 25 25 25 25 Final Carried 25 | 4 7 17 25 25 24 24 Class Distribution -------------------- 97% | Mutant Dominant Class ---------------- Mutant | -10/Materials Mutant | -10/Mines Mutant | -9/Materials Mutant | -9/Mines Mutant | -9/Exiles Mutant | -8/Mines Resources | -11 -10 -10 -9 -9 -9 -8 ----------- Run | Yrd Mat Min Mat Min Exi Min Matter Collected 2163 | 263 29 33 961 121 756 . Remotely . | . . . . . . . Salvage Created 3419 | 56 289 382 1728 307 642 15 Parts 249 | 3 13 16 109 22 80 6 Haulers Intercepted 7 | . 1 . 6 . . . Recyclers Shooed 2 | . . 2 . . . . Parts Field Recycled . | . . . . . . . Retrieved Matter . | . . . . . . . Parts Self-Destructed . | . . . . . . . Prevented . | . . . . . . . Parts Restored . | . . . . . . . Kills | -11 -10 -10 -9 -9 -9 -8 ------- Run | Yrd Mat Min Mat Min Exi Min Combat Hostiles Destroyed 67 | . 3 7 30 16 7 4 Melee 8 | . . . . 7 1 . Guns 30 | . 3 7 20 . . . Cannons 14 | . . . 9 5 . . AOE 14 | . . . 1 3 6 4 Classes Destroyed 16 | 1 4 2 6 1 2 . Worker 1 | . . . 1 . . . Builder 3 | . 1 . 2 . . . Tunneler 1 | . . . 1 . . . Hauler 7 | . 1 . 6 . . . Recycler 5 | 1 1 2 1 . . . Mechanic 1 | . . . 1 . . . Operator 3 | . . . 3 . . . Turret 1 | . . . . . 1 . Watcher 5 | . 1 . 4 . . . Swarmer 22 | . . 4 7 7 . 4 Grunt 18 | . 3 1 11 3 . . Brawler 1 | . . . 1 . . . Duelist 1 | . . . 1 . . . Sentry 12 | . . 2 10 . . . Zionite 8 | . . . . . 8 . Assembled 13 | . . . . 6 7 . Best Kill Streak 6 | 1 3 3 6 4 6 4 Combat Bots Only 6 | . 1 2 6 4 6 4 Max Kills in Single Turn 4 | 1 2 1 2 3 3 4 Gunslinging . | . . . . . . . Exploded 4 | . . . 1 3 3 4 Melee 1 | . . . . 1 1 . Uniques/NPCs Destroyed 4 | . . . . . 4 . 8R-AWN (-9/Exiles) EX-BIN (-9/Exiles) EX-DEC (-9/Exiles) EX-HEX (-9/Exiles) Combat | -11 -10 -10 -9 -9 -9 -8 -------- Run | Yrd Mat Min Mat Min Exi Min Hostile Shots Fired 320 | . 11 43 138 48 56 24 Missed 74 | . 2 11 37 12 11 1 Hits 246 | . 9 32 101 36 45 23 Melee 4 | . . . 1 3 . . Projectile 242 | . 9 32 100 33 45 23 Critical Strikes 16 | . 1 . 4 . 11 . Part Disruptions 1 | . . . . . . 1 Damage Taken 3690 | . 279 378 1231 492 1044 266 Core 588 | . 90 98 189 28 157 26 Absorbed by Shields . | . . . . . . . Redirected to Shielding 15 | . . . 15 . . . Regen/Repaired (Parts) 170 | . . . 170 . . . Core Remaining (%) 62 | 100 . 24 . . . . Volleys Fired 266 | 3 12 28 114 13 87 9 Largest 2 | 2 2 2 2 2 2 1 Hottest 126 | 60 70 70 86 126 93 33 Shots Fired 428 | 6 23 56 225 19 90 9 Gun 345 | 6 23 56 177 . 75 8 Cannon 73 | . . . 47 18 8 . Launcher 10 | . . . 1 1 7 1 Special . | . . . . . . . Kinetic 303 | 3 12 28 177 . 75 8 Thermal 70 | . 1 28 41 . . . Explosive 10 | . . . 1 1 7 1 Electromagnetic 45 | 3 10 . 6 18 8 . Robot Hit Streak 12 | 2 10 9 8 9 8 12 Robot Miss Streak 8 | 1 1 5 5 2 8 2 Penetration Max 1 | . . . . . 1 . Secondary Targets 6 | . 1 3 2 . . . Max Gunslinging Chain 1 | . 1 1 1 . . . Shots Hit Robots 300 | 3 19 34 145 29 64 6 Core Hits 171 | 2 12 16 74 16 45 6 Critical Kills 6 | . . . . . 6 . Critical Parts Destroyed 16 | . . . 1 . 14 1 Critical Strikes 24 | . . 1 1 . 21 1 Burn 1 | . . 1 . . . . Destroy 22 | . . . 1 . 20 1 Sever 1 | . . . . . 1 . Melee Attacks 52 | . . . 3 22 27 . Impact . | . . . . . . . Slashing 48 | . . . 3 22 23 . Piercing . | . . . . . . . Sneak Attacks 6 | . . . 2 . 4 . Combat Hostiles . | . . . . . . . Follow-up Attacks 9 | . . . . 4 5 . Damage Inflicted 6820 | 29 461 345 2610 1154 1967 254 Guns 3091 | 29 231 345 1728 . 648 110 Cannons 1182 | . . . 638 352 192 . Explosions 1199 | . 230 . 33 235 557 144 Melee 1348 | . . . 211 567 570 . Ramming . | . . . . . . . Kinetic 2699 | 16 63 134 1728 . 648 110 Thermal 1004 | . 242 211 473 50 28 . Explosive 858 | . . . . 185 529 144 Electromagnetic 911 | 13 156 . 198 352 192 . Impact . | . . . . . . . Slashing 1348 | . . . 211 567 570 . Piercing . | . . . . . . . Highest Corruption 8 | . . . . 8 8 8 Average Corruption 7 | . . . . 7 8 8 Corruption Purged . | . . . . . . . Corruption Blocked . | . . . . . . . Effects 68 | . . . . 12 53 3 Message Errors 17 | . . . . 1 16 . Matter Fused 16 | . . . . 2 14 . Heat Flow Errors 10 | . . . . . 10 . Energy Discharges 10 | . . . . 4 5 1 Parts Fused 1 | . . . . . 1 . Data Loss (minor) 8 | . . . . 3 4 1 Data Loss (major) 3 | . . . . 1 1 1 Misfires 2 | . . . . . 2 . Alerts 1 | . . . . 1 . . Overload Shots . | . . . . . . . Overflow Damage 220 | . 66 . 86 61 7 . Projectiles 31 | . . . 16 15 . . Explosions 80 | . 66 . . 7 7 . Melee 109 | . . . 70 39 . . Knockbacks . | . . . . . . . Impact . | . . . . . . . Kinetic . | . . . . . . . Secondary . | . . . . . . . Self-Inflicted Damage 227 | . 162 . . 10 55 . Shots 5 | . 2 . . 1 2 . Rammed . | . . . . . . . Targets Rammed . | . . . . . . . Kicked . | . . . . . . . Crushed . | . . . . . . . Highest Temperature 468 | 20 109 182 223 468 266 364 Average Temperature 84 | 15 37 51 28 167 98 184 Received Heat Transfer 1243 | . 87 87 417 212 20 420 Effects 6 | . . . . 4 2 . Shutdowns 1 | . . . . 1 . . Energy Bleed 1 | . . . . 1 . . Interference 3 | . . . . 1 2 . Damage (minor) 1 | . . . . 1 . . Siege Activations . | . . . . . . . Martial Activations . | . . . . . . . Shielding Activations . | . . . . . . . Robots Disrupted . | . . . . . . . Combat Hostiles . | . . . . . . . Robots Corrupted 2 | . . . . 1 1 . Combat Hostiles 1 | . . . . 1 . . Parts Fried 3 | . . . 1 1 1 . Impact Corruptions . | . . . . . . . Robots Melted . | . . . . . . . Combat Hostiles . | . . . . . . . Parts Melted 6 | . 1 4 1 . . . Heat Transferred 2065 | . 237 703 975 100 50 . Parts Sabotaged . | . . . . . . . Parts Stolen . | . . . . . . . Parts Stripped . | . . . . . . . Power Chain Reactions 4 | . 1 . 1 1 1 . Alert | -11 -10 -10 -9 -9 -9 -8 ------- Run | Yrd Mat Min Mat Min Exi Min Maximum Alert Level 2 | . . . 2 1 . . Low Security (%) 69 | 100 100 100 61 57 . 100 Level 1 29 | . . . 36 42 . . Level 2 . | . . . 1 . . . Level 3 . | . . . . . . . Level 4 . | . . . . . . . Level 5 . | . . . . . . . High Security . | . . . . . . . Max Security . | . . . . . . . Peak Influence 437 | 5 104 86 437 291 . 104 Initial 169 | . . 36 . 169 . . Average 140 | . 26 38 185 146 . 51 Influence Increases 1805 | 5 184 185 1043 272 . 116 Destroy 0b10 Robot/C 1080 | . 60 140 600 200 . 80 Destroy 0b10 Robot/NC 130 | 5 20 10 95 . . . Destroy Leader 264 | . 14 20 190 30 . 10 Successful Hack 28 | . 5 . 23 . . . Select Force Hacks 60 | . . . 60 . . . Disable Machine 30 | . 15 . . . . 15 Destroy Structure 63 | . 25 . 15 12 . 11 Lose Combat Pursuer 150 | . 45 15 60 30 . . Influence Decreases 1739 | 5 90 278 609 707 . 50 Entered New Map 325 | . . 58 1 266 . . Time Decay 1344 | 5 80 210 578 421 . 50 Lost Part 70 | . 10 10 30 20 . . Squads Dispatched 7 | . 2 . 5 . . . Investigation 5 | . 2 . 3 . . . Extermination . | . . . . . . . Reinforcement 2 | . . . 2 . . . Assault . | . . . . . . . Garrison . | . . . . . . . Intercept . | . . . . . . . Searches Triggered . | . . . . . . . Construction Impeded . | . . . . . . . Haulers Reinforced . | . . . . . . . Active Scanning Responses . | . . . . . . . Cargo Convoy Interrupts . | . . . . . . . Stealth | -11 -10 -10 -9 -9 -9 -8 --------- Run | Yrd Mat Min Mat Min Exi Min Distress Signals 2 | . 1 . 1 . . . Communications Jammed . | . . . . . . . Distress Signals . | . . . . . . . Times Spotted 106 | . 8 9 47 21 20 1 Peak Tracking Total 9 | . 5 3 5 4 9 1 Tactical Retreats 17 | . 1 1 4 3 8 . Traps | -11 -10 -10 -9 -9 -9 -8 ------- Run | Yrd Mat Min Mat Min Exi Min Traps Triggered 1 | . . . 1 . . . Indirectly . | . . . . . . . Trap Hack Attempts . | . . . . . . . Triggered . | . . . . . . . Disarmed . | . . . . . . . Reprogrammed . | . . . . . . . Reused . | . . . . . . . Traps Extracted . | . . . . . . . Installed . | . . . . . . . Triggered . | . . . . . . . Machines | -11 -10 -10 -9 -9 -9 -8 ---------- Run | Yrd Mat Min Mat Min Exi Min Machines Disabled 18 | . 1 . . . 16 1 Max in Single Turn 2 | . 1 . . . 2 1 Machines Repaired . | . . . . . . . Machines Dismantled . | . . . . . . . Machines Sabotaged . | . . . . . . . Overloaded Fab Kills . | . . . . . . . Hacking | -11 -10 -10 -9 -9 -9 -8 --------- Run | Yrd Mat Min Mat Min Exi Min Machines Accessed 18 | . 2 . 14 . 2 . Terminals 10 | . 2 . 8 . . . Fabricators . | . . . . . . . Repair Stations 2 | . . . 2 . . . Recycling Units 2 | . . . 2 . . . Scanalyzers 2 | . . . 2 . . . Garrison Access . | . . . . . . . Total Hacks 61 | . 11 . 48 . 2 . Successful 31 | . 3 . 26 . 2 . Failed 29 | . 7 . 22 . . . Catastrophic 4 | . 2 . 2 . . . Database Lockouts 1 | . 1 . . . . . Manual 32 | . 11 . 20 . 1 . Terminals 37 | . 11 . 26 . . . Fabricators . | . . . . . . . Repair Stations 9 | . . . 9 . . . Recycling Units 2 | . . . 2 . . . Scanalyzers 11 | . . . 11 . . . Garrison Access . | . . . . . . . Terminal Hacks 8 | . 1 . 5 . 2 . Record 1 | . . . . . 1 . Robot Analysis 3 | . 1 . 2 . . . Prototype ID Bank 1 | . . . 1 . . . Zone Layout 2 | . . . 2 . . . Proto ID Catalog 1 | . . . . . 1 . Fabricator Hacks . | . . . . . . . Repair Station Hacks 7 | . . . 7 . . . Scan Component 4 | . . . 4 . . . Repair 3 | . . . 3 . . . Recycling Unit Hacks . | . . . . . . . Scanalyzer 8 | . . . 8 . . . Insert Component 3 | . . . 3 . . . Analyze 3 | . . . 3 . . . Retrieve Study 2 | . . . 2 . . . Garrison Access Hacks . | . . . . . . . Unauthorized Hacks 8 | . 2 . 6 . . . Terminals 6 | . 2 . 4 . . . Botnet 6 | . 2 . 4 . . . Fabricators . | . . . . . . . Repair Stations . | . . . . . . . Recycling Units 2 | . . . 2 . . . Tunnel 2 | . . . 2 . . . Scanalyzers . | . . . . . . . Garrison Access . | . . . . . . . Data Cores Recovered 2 | . . . 2 . . . Used . | . . . . . . . Hacking Detections 14 | . 2 . 12 . . . Full Trace Events 4 | . 2 . 2 . . . Feedback Events . | . . . . . . . Feedback Blocked . | . . . . . . . Robot Schematics Acquired . | . . . . . . . Robots Built . | . . . . . . . Authchips . | . . . . . . . Time . | . . . . . . . Total Robot Build Rating . | . . . . . . . Part Schematics Acquired . | . . . . . . . Parts Built . | . . . . . . . Authchips . | . . . . . . . Time . | . . . . . . . Total Part Build Rating . | . . . . . . . Part Studies Acquired 2 | . . . 2 . . . Parts Repaired 3 | . . . 3 . . . Time 96 | . . . 96 . . . Parts Recycled . | . . . . . . . Recycled Matter . | . . . . . . . Retrieved Matter . | . . . . . . . Retrieved Components . | . . . . . . . Parts Scanalyzed 1 | . . . 1 . . . Part Schematics Acquired . | . . . . . . . Parts Damaged 1 | . . . 1 . . . Bothacking | -11 -10 -10 -9 -9 -9 -8 ------------ Run | Yrd Mat Min Mat Min Exi Min Used RIF Installer . | . . . . . . . Robots Hacked 4 | . . . . . 4 . Non-combat 3 | . . . . . 3 . Combat 1 | . . . . . 1 . Robot Hacks Applied 4 | . . . . . 4 . parse_system 4 | . . . . . 4 . Relay Couplers Released . | . . . . . . . Fabnet Peak Effective % . | . . . . . . . Robots Rewired . | . . . . . . . Allies Hacked . | . . . . . . . Hacks Repelled . | . . . . . . . Allies | -11 -10 -10 -9 -9 -9 -8 -------- Run | Yrd Mat Min Mat Min Exi Min Total Allies . | . . . . . . . Largest Group . | . . . . . . . Highest-Rated Group . | . . . . . . . Highest-Rated Ally . | . . . . . . . Total Orders . | . . . . . . . Ally Attacks . | . . . . . . . Total Damage . | . . . . . . . Kills . | . . . . . . . Allies Corrupted . | . . . . . . . Allies Melted . | . . . . . . . Intel | -11 -10 -10 -9 -9 -9 -8 ------- Run | Yrd Mat Min Mat Min Exi Min Active Infowar (turns) . | . . . . . . . Robot Analysis Total 3 | . 1 . 2 . . . Derelict Logs Recovered 2 | . . 1 . 1 . . Drone Launches . | . . . . . . . Drone Recoveries . | . . . . . . . Exploration | -11 -10 -10 -9 -9 -9 -8 ------------- Run | Yrd Mat Min Mat Min Exi Min Turns Passed 6386 | 69 233 549 2162 1156 2076 141 Spaces Moved 3542 | 60 136 433 1181 536 1095 101 Core 2 | 2 . . . . . . Treads . | . . . . . . . Legs . | . . . . . . . Wheels 3540 | 58 136 433 1181 536 1095 101 Hover . | . . . . . . . Flight . | . . . . . . . Fastest Speed 50 | 50 80 105 105 140 110 110 Average Speed 136 | 79 108 105 131 142 159 110 Slowest Speed 220 | 80 110 110 155 220 195 140 Overloaded Moves . | . . . . . . . Propulsion Burnouts . | . . . . . . . Robots Hopped . | . . . . . . . Potential Cave-ins . | . . . . . . . Cave-ins Triggered . | . . . . . . . Exploration Rate (%) 59 | 4 24 93 95 84 89 28 Regions Visited 6 Branch Regions 4 Pre-discovered Areas 4 | . . . 2 1 1 . Known Exits Taken . | . . . . . . . Unknown Exits Taken 6 | 1 1 1 1 1 1 . Scrap Searched 3 | . . 1 . 2 . . Spaces Dug 19 | . . . 8 11 . . Terrain Destroyed 119 | . 33 . 11 13 48 14 Melee . | . . . . . . . Projectile 9 | . . . . . 5 4 AOE 109 | . 33 . 11 13 43 9 Terrain Rammed . | . . . . . . . Walls Destroyed . | . . . . . . . Machines Disabled . | . . . . . . . Actions | -11 -10 -10 -9 -9 -9 -8 --------- Run | Yrd Mat Min Mat Min Exi Min Total 4628 | 73 200 472 1575 882 1306 120 Wait 566 | . 47 . 169 300 44 6 Move 3536 | 59 135 432 1180 535 1094 101 Hop . | . . . . . . . Pick Up 82 | 5 4 11 37 3 22 . Fast Attach 19 | 5 1 . 11 1 1 . Attach 23 | 1 1 1 11 3 6 . Detach 1 | . . . . . 1 . Swap 38 | . . . 16 7 11 4 Drop 56 | . . . 34 3 19 . Fire 266 | 3 12 28 114 13 87 9 Melee 41 | . . . 3 17 21 . Ram . | . . . . . . . Kick . | . . . . . . . Crush . | . . . . . . . Escape Stasis . | . . . . . . . Rewire . | . . . . . . . Trap . | . . . . . . . Miscellaneous . | . . . . . . . Route ------- -11/Scrapyard -10/Materials -10/Mines (discovered 2 exits: *Mat x2) -9/Materials (discovered 4 exits: [*Mat x3] / [*Min]) -9/Mines -9/Exiles -8/Mines History --------- Turn | Location | Event 39 | -11/Scrapyard | Discovered new exit (range 12) 70 | -11/Scrapyard | Entered Materials 137 | -10/Materials | Discovered new exit (range 12) 295 | -10/Materials | Central database locked down 303 | -10/Materials | Entered Mines 306 | -10/Mines | Build established: Mutant 315 | -10/Mines | Met a Derelict bent on vengeance 352 | -10/Mines | Discovered new exit (range 12) 431 | -10/Mines | Learned Materials terminal intel 436 | -10/Mines | Core integrity fell below 50% 551 | -10/Mines | Discovered new exit (range 15) 737 | -10/Mines | Found a damaged Exp. Sensor Array with a note attached 739 | -10/Mines | Found Prototype Device 852 | -10/Mines | Entered Materials 852 | -9/Materials | Evolved 2 slots: Utility x2 853 | -9/Materials | Loaded intel: 12 terminal locations 909 | -9/Materials | Lost 3 parts (1p1n1w) 972 | -9/Materials | Repaired Imp. Ion Engine 1005 | -9/Materials | Repaired Hvy. Assault Rifle 1344 | -9/Materials | Discovered new exit (range 5) 1880 | -9/Materials | Discovered new exit (range 14) 1953 | -9/Materials | Repaired Med. Armor Plating 2361 | -9/Materials | Discovered new exit (range 11) 2515 | -9/Materials | Identified Exp. Sensor Array 2654 | -9/Materials | Discovered new exit (range 16) 3014 | -9/Materials | Entered Mines 3016 | -9/Mines | Core integrity fell below 50% 3467 | -9/Mines | Assembled infested the area 3472 | -9/Mines | Assisted by a Guerilla fighting off Assembled 3938 | -9/Mines | Learned location of Storage (-8) 4163 | -9/Mines | Deemed a non-threat by the Exiles lab entrance 4163 | -9/Mines | Discovered new exit (range 5) 4170 | -9/Mines | Entered Exiles 4205 | -9/Exiles | Met 8R-AWN 4234 | -9/Exiles | Met EX-HEX 4277 | -9/Exiles | Met EX-BIN 4318 | -9/Exiles | Met EX-DEC 4356 | -9/Exiles | Learned location of Zion (-6) 4419 | -9/Exiles | Aligned with FarCom system 4420 | -9/Exiles | Given EX-Vault access code 4455 | -9/Exiles | Opened EX-Vault 4497 | -9/Exiles | Warned to stay clear of 0b10 Research branches 4818 | -9/Exiles | Attacked by the Exiles 4876 | -9/Exiles | Core integrity fell below 20% 4884 | -9/Exiles | Destroyed 8R-AWN 4896 | -9/Exiles | Found 8R-AWN's Boregun 4899 | -9/Exiles | Found Exp. Targeting Computer 4904 | -9/Exiles | Found 8R-AWN's Armor/EX 4912 | -9/Exiles | Lost 5 parts (1p2n2u) 5501 | -9/Exiles | Destroyed EX-BIN 5537 | -9/Exiles | Destroyed EX-DEC 5806 | -9/Exiles | Destroyed EX-HEX 5878 | -9/Exiles | Found Exp. Core Analyzer 5916 | -9/Exiles | Found System Purifier 6233 | -9/Exiles | Discovered new exit (range 14) 6246 | -9/Exiles | Entered Mines 6364 | -8/Mines | AD-0RF came to Exiles' defense 6387 | -8/Mines | Destroyed by AD-0RF with AD-0RF's Magmablaster Last Messages --------------- 06224_ BERCOVMF3N5LNW:ER/AP1%A,IY%SLRP2P>KL0 06233_ EXIT=FOUND A strange signal echoes through the mines. LOCATION=UNKNOWN GOAL=ESCAPE 06247_ System corrupted: Component data lost. 06305_ Laser Drill disabled. 06305_ S-10 Pest destroyed. 06318_ The unstable cave ceiling collapses. 06322_ System corrupted: Energy discharge (-95). 06357_ System corrupted: Substantial component data lost. 06360_ T-07 Excavator is excavating. 06364_ AD-0RF: "I came as fast as I could... Wait, it was you!" 06365_ HV Slug penetrates AD-0RF. 06375_ HV Slug penetrates Wall. 06379_ HV Slug penetrates AD-0RF. 06379_ AD-0RF suffers critical hit (Destroy). 06379_ Destroyed Prototype Device. 06386_ HV Slug penetrates AD-0RF. 06386_ HV Slug penetrates Wall. Map ----- +----------------------------------------------------+ | ????????????????#####????## ##?? | | ??????????????????????????# ##??? | | ??????????????????????????# #???? | | ??????????????????????????# #???? | | ?????????#####????????????# #???? | | ?????????# #????????????# #???? | | ????###??# #????????????# #???? | | ???## ### ##########???# #???? | | ??## #???# #???? | | ??# ####### #???# ##### | | ??# ##?????# #???# | | ??## #??????# ##### ##### | | ???### #??????# #??? | | ?????## ##??????##### ##?? | | ??????# ##?????????? [ #? | | ?????## ##??????????# % #? | | ?????# ##???????????# % #? | | ?????# ########??????# =*= #? | | ?????# #????# =%% ##? | | ?????# ########??????# #?? | | ?????# #?????????????#########?? | | ?????# #???????????????????????? | | ?????# #???????????????????????? | | ?????# #???????????????????????? | | ?????# i#####???????????????????? | | ?????# @ #???????????????????? | | ?????# #???????????????????? | | ?????##### #???????????????????? | | ?????????# #???????????????????? | | ?????????# #???????????????????? | | ????????? #???????????????????? | | ?????????####???????????????????? | | ????????????????????????????????? | | ????????????????????????????????? | | ????????????????????????????????? | | ????????????????????????????????? | | ????????????????????????????????? | | ????????????????????????????????? | | ????????????????????????????????? | | ????????????????????????????????? | | ????????????????????????????????? | | ????????????????????????????????? | | ????????????????????????????????? | | ????????????????????????????????? | | ????????????????????????????????? | | | | | | | | | | | +----------------------------------------------------+ Best States ------------- Heat Dissipation 54 Energy Generation 14 Energy Capacity 280 Matter Stores 300 Matter Capacity 300 Sight Range 16 Terrain Scan Density 10 Additional Mass Support 12 Armor Coverage 675 Utility Shielding 33 Evasion (%) 44 Targeting Accuracy 6 Offensive Hacking 10 Item Schematics ----------------- None Robot Schematics ------------------ None Fabricated ------------ Nothing Repaired ---------- Imp. Ion Engine | 42% | -9/Materials Hvy. Assault Rifle | 45% | -9/Materials Med. Armor Plating | 44% | -9/Materials Studied --------- Com. Wheel | -9/Materials | Hacked Wheel | -9/Materials | Hacked Alien Tech Used ----------------- None Achievements -------------- None Challenges ------------ None Game ------ Seed FusionTimingWartreads Manual? 0 Play Time 00:43:38 Cumulative 426.3 hours Start 2025.12.13 @ 06:22:15 End 2025.12.13 @ 18:39:36 Sessions 3 Manual Loads 0 Difficulty Rogue Special Mode None Game No. 417 Rogue 413 Adventurer 3 Explorer 1 Win Type - Total 6 Types 5/0/1/0/0/0/0/0/0/0 Lore% 86 Gallery% 80 Achievement% 69 Wizard Run 0 Options --------- Layout 0 ASCII 0 Keyboard 0 Movement Mouse Keybinds 0 Fullscreen 2 Font 18/SmallcapsGlow Map View 76x50 Zoom Use 0% Tactical HUD 1 Map Filters NONE Filters NONE Steam 1 RUN: f738cd00-bd81-4162-99aa-6194eb40552b